Workbook

Sheet Read me
A1: Read Me
A8: 1)
A9: Dear User, thank you for using my template. Please remove sample entries from the register
A11: 2)
A12: Usually only cells on the sheet "Register" require data-entry. Cells containing formulas or functions are protected, the password is blank should you wish to modify anything.
A15: 3)
A16: To avoid typing mistakes resulting in incorrect filter results, some entries in different columns of the register are restricted. To modify acceptable values change entries on the sheet "Validation".
A19: 4)
A20: The register is made for 500 data sets, however can be easily extended. The charts are made in a way that only a period of 48 month is covered. This limitation as well can be adjusted and was only implemented for formatting reasons.

Sheet Register
A1: Project: | H1: [Project Name] | AT1: Non-Conformance Register
A2: Sub-Project or Phase: | H2: [Sub-Project or Phase]
A3: Client: | H3: [Client] | AT3: Project Mngr.: | BA3: [Proj. Mngr.] | BQ3: Printed on | BX3: =TODAY() -> 2015-03-12
A4: Client's Representative: | H4: [Client's Representative] | AT4: QA/QC Mngr.: | BA4: [QA/QC Mngr.]
A5: Contractor: | H5: [Contractor]
AT6: Ref.-No.: | BA6: [ref.number]
A7: ID | F7: NCR Issued | V7: Trade | AA7: Location | AH7: Item | AO7: NCR Reference No. | AZ7: Close-out Date | BD7: Days Open | BF7: Root Cause | BL7: Corrective Action | BX7: Associated Cost of Quality | CB7: Corrective Action Report No.
F8: By | L8: To | R8: Date | BF8: Major | BI8: Secondary | BL8: Action 1 | BR8: Action 2
A9: A | C9: B | F9: C | L9: D | R9: E | V9: F | AA9: G | AH9: H | AO9: I | AZ9: J | BD9: K | BF9: L | BI9: M | BL9: N | BR9: O | BX9: P | CB9: Q
A10: 0001 | C10: issued | F10: Client | L10: Party 1 | R10: 2014-08-01 | V10: Architectural | AA10: Location 1 | AH10: Item 1 | AZ10: 2014-08-28 | BD10: =IF(R10="","",IF(AND(R10>0,AZ10=""),TODAY()-R10,AZ10-R10)) -> 27 | BF10: Man | BL10: rework | BR10: training | BX10: 10,000
A11: 0002 | C11: issued | F11: Client | L11: Party 2 | R11: 2014-08-12 | V11: Electrical | AA11: Location 2 | AH11: Item 3 | AZ11: 2014-10-22 | BD11: =IF(R11="","",IF(AND(R11>0,AZ11=""),TODAY()-R11,AZ11-R11)) -> 71 | BF11: Method | BI11: Man | BL11: rework | BX11: 1,000
A12: 0003 | C12: issued | F12: Consultant | L12: Party 3 | R12: 2014-10-22 | V12: Fire Systems | AA12: Location 3 | AH12: Item 3 | AZ12: 2014-10-29 | BD12: =IF(R12="","",IF(AND(R12>0,AZ12=""),TODAY()-R12,AZ12-R12)) -> 7 | BF12: Material | BL12: rework | BX12: 500
A13: 0004 | C13: received | F13: Main Contr. | L13: Party 4 | R13: 2014-10-23 | V13: HVAC | AA13: Location 5 | AH13: Item 4 | AZ13: 2014-11-01 | BD13: =IF(R13="","",IF(AND(R13>0,AZ13=""),TODAY()-R13,AZ13-R13)) -> 9 | BF13: Man | BL13: rework
A14: 0005 | C14: received | F14: Client | L14: Party 5 | R14: 2015-01-20 | V14: Landscaping | AA14: Location 5 | AH14: Item 5 | BF14: Man | BL14: rework | BX14: 1,100
A15: 0006 | C15: received | F15: Main Contr. | L15: Party 6 | R15: 2015-02-20 | V15: Mechanical | AA15: Location 6 | AH15: Item 6 | BF15: Man | BL15: rework | BX15: 1,200
A16: 0007 | C16: received | F16: Main Contr. | L16: Party 7 | R16: 2015-02-21 | V16: Plumbing | AA16: Location 7 | AH16: Item 7 | BF16: Man | BL16: rework | BX16: 1,300
A17: 0008 | C17: received | F17: Main Contr. | L17: Party 8 | R17: 2015-03-20 | V17: Safety | AA17: Location 8 | AH17: Item 8 | BF17: Man | BL17: rework | BX17: 1,400
A18: 0009 | C18: received | F18: Main Contr. | L18: Party 9 | R18: 2015-03-21 | V18: Structural | AA18: Location 9 | AH18: Item 9 | BF18: Man | BL18: rework | BX18: 1,500
A19: 0010 | C19: received | F19: Main Contr. | L19: Party 10 | R19: 2015-03-21 | V19: Others | AA19: Location 10 | AH19: Item 10 | BF19: Man | BL19: rework | BX19: 1,600
A20: 0011 | C20: received | F20: Main Contr. | L20: Party 1 | R20: 2015-04-01 | V20: Architectural | AA20: Location 1 | AH20: Item 11 | BF20: Man | BL20: rework | BX20: 1,700
A21: 0012 | C21: received | F21: Main Contr. | L21: Party 1 | R21: 2015-04-02 | V21: Architectural | AA21: Location 2 | AH21: Item 12

Sheet Dashboard
A2: Total NCR | F2: =COUNT(Register!A10:A1048576) -> 12 | AH2: =IF(Validation!$C2=0,"",Validation!$C2) -> Party 1 | AI2: =IF(Validation!$C3=0,"",Validation!$C3) -> Party 2 | AJ2: =IF(Validation!$C4=0,"",Validation!$C4) -> Party 3 | AK2: =IF(Validation!$C5=0,"",Validation!$C5) -> Party 4 | AL2: =IF(Validation!$C6=0,"",Validation!$C6) -> Party 5 | AM2: =IF(Validation!$C7=0,"",Validation!$C7) -> Party 6 | AN2: =IF(Validation!$C8=0,"",Validation!$C8) -> Party 7 | AO2: =IF(Validation!$C9=0,"",Validation!$C9) -> Party 8 | AP2: =IF(Validation!$C10=0,"",Validation!$C10) -> Party 9 | AQ2: =IF(Validation!$C11=0,"",Validation!$C11) -> Party 10
A3: Total closed | F3: =COUNTIF(Register!AZ10:AZ1048576,">0") -> 4 | AH3: =IF(AH$2="","",COUNTIF(Register!$L$10:$L$1048576,AH$2)) -> 3 | AI3: =IF(AI$2="","",COUNTIF(Register!$L$10:$L$1048576,AI$2)) -> 1 | AJ3: =IF(AJ$2="","",COUNTIF(Register!$L$10:$L$1048576,AJ$2)) -> 1 | AK3: =IF(AK$2="","",COUNTIF(Register!$L$10:$L$1048576,AK$2)) -> 1 | AL3: =IF(AL$2="","",COUNTIF(Register!$L$10:$L$1048576,AL$2)) -> 1 | AM3: =IF(AM$2="","",COUNTIF(Register!$L$10:$L$1048576,AM$2)) -> 1 | AN3: =IF(AN$2="","",COUNTIF(Register!$L$10:$L$1048576,AN$2)) -> 1 | AO3: =IF(AO$2="","",COUNTIF(Register!$L$10:$L$1048576,AO$2)) -> 1 | AP3: =IF(AP$2="","",COUNTIF(Register!$L$10:$L$1048576,AP$2)) -> 1 | AQ3: =IF(AQ$2="","",COUNTIF(Register!$L$10:$L$1048576,AQ$2)) -> 1
A4: Total open | F4: =F2-F3 -> 8
A19: =IF(Validation!$E2=0,"",Validation!$E2) -> Architectural | B19: =IF(Validation!$E3=0,"",Validation!$E3) -> Electrical | C19: =IF(Validation!$E4=0,"",Validation!$E4) -> Fire Systems | D19: =IF(Validation!$E5=0,"",Validation!$E5) -> HVAC | E19: =IF(Validation!$E6=0,"",Validation!$E6) -> Landscaping | F19: =IF(Validation!$E7=0,"",Validation!$E7) -> Mechanical | G19: =IF(Validation!$E8=0,"",Validation!$E8) -> Plumbing | H19: =IF(Validation!$E9=0,"",Validation!$E9) -> Safety | I19: =IF(Validation!$E10=0,"",Validation!$E10) -> Structural | J19: =IF(Validation!$E11=0,"",Validation!$E11) -> Others | AH19: =IF(Validation!$K2=0,"",Validation!$K2) -> Man | AI19: =IF(Validation!$K3=0,"",Validation!$K3) -> Method | AJ19: =IF(Validation!$K4=0,"",Validation!$K4) -> Material | AK19: =IF(Validation!$K5=0,"",Validation!$K5) -> Machine
A20: =IF(A$19="","",COUNTIF(Register!$V$10:$V$1048576,A$19)) -> 3 | B20: =IF(B$19="","",COUNTIF(Register!$V$10:$V$1048576,B$19)) -> 1 | C20: =IF(C$19="","",COUNTIF(Register!$V$10:$V$1048576,C$19)) -> 1 | D20: =IF(D$19="","",COUNTIF(Register!$V$10:$V$1048576,D$19)) -> 1 | E20: =IF(E$19="","",COUNTIF(Register!$V$10:$V$1048576,E$19)) -> 1 | F20: =IF(F$19="","",COUNTIF(Register!$V$10:$V$1048576,F$19)) -> 1 | G20: =IF(G$19="","",COUNTIF(Register!$V$10:$V$1048576,G$19)) -> 1 | H20: =IF(H$19="","",COUNTIF(Register!$V$10:$V$1048576,H$19)) -> 1 | I20: =IF(I$19="","",COUNTIF(Register!$V$10:$V$1048576,I$19)) -> 1 | J20: =IF(J$19="","",COUNTIF(Register!$V$10:$V$1048576,J$19)) -> 1 | AH20: =IF(AH$19="","",COUNTIF(Register!$BF$10:$BF$1048576,AH$19)) -> 9 | AI20: =IF(AI$19="","",COUNTIF(Register!$BF$10:$BF$1048576,AI$19)) -> 1 | AJ20: =IF(AJ$19="","",COUNTIF(Register!$BF$10:$BF$1048576,AJ$19)) -> 1 | AK20: =IF(AK$19="","",COUNTIF(Register!$BF$10:$BF$1048576,AK$19)) -> 0
A36: =EOMONTH(Register!R10,-1)+1 -> 2014-08-01 | B36: =EDATE(A36,1) -> 2014-09-01 | C36: =EDATE(B36,1) -> 2014-10-01 | D36: 2014-11-01 | E36: 2014-12-01 | F36: 2015-01-01 | G36: 2015-02-01 | H36: 2015-03-01 | I36: 2015-04-01 | J36: 2015-05-01 | K36: 2015-06-01 | L36: 2015-07-01 | M36: 2015-08-01 | N36: 2015-09-01 | O36: 2015-10-01 | P36: 2015-11-01 | Q36: 2015-12-01 | R36: 2016-01-01 | S36: 2016-02-01 | T36: 2016-03-01 | U36: 2016-04-01 | V36: 2016-05-01 | W36: 2016-06-01 | X36: 2016-07-01 | Y36: 2016-08-01 | Z36: 2016-09-01 | AA36: 2016-10-01 | AB36: 2016-11-01 | AC36: 2016-12-01 | AD36: 2017-01-01 | AE36: 2017-02-01 | AF36: 2017-03-01 | AG36: 2017-04-01 | AH36: 2017-05-01 | AI36: 2017-06-01 | AJ36: 2017-07-01 | AK36: 2017-08-01 | AL36: 2017-09-01 | AM36: 2017-10-01 | AN36: 2017-11-01 | AO36: 2017-12-01 | AP36: 2018-01-01 | AQ36: 2018-02-01 | AR36: 2018-03-01 | AS36: 2018-04-01 | AT36: 2018-05-01 | AU36: 2018-06-01 | AV36: 2018-07-01
A37: =IF(COUNTIFS(Register!$R$10:$R$1048576,">="&A$36,Register!$R$10:$R$1048576,"<"&EDATE(A$36,1))=0,0,COUNTIFS(Register!$R$10:$R$1048576,">="&A$36,Register!$R$10:$R$1048576,"<"&EDATE(A$36,1))) -> 2 | B37: =IF(COUNTIFS(Register!$R$10:$R$1048576,">="&B$36,Register!$R$10:$R$1048576,"<"&EDATE(B$36,1))=0,0,COUNTIFS(Register!$R$10:$R$1048576,">="&B$36,Register!$R$10:$R$1048576,"<"&EDATE(B$36,1))) -> 0 | C37: =IF(COUNTIFS(Register!$R$10:$R$1048576,">="&C$36,Register!$R$10:$R$1048576,"<"&EDATE(C$36,1))=0,0,COUNTIFS(Register!$R$10:$R$1048576,">="&C$36,Register!$R$10:$R$1048576,"<"&EDATE(C$36,1))) -> 2 | D37: =IF(COUNTIFS(Register!$R$10:$R$1048576,">="&D$36,Register!$R$10:$R$1048576,"<"&EDATE(D$36,1))=0,0,COUNTIFS(Register!$R$10:$R$1048576,">="&D$36,Register!$R$10:$R$1048576,"<"&EDATE(D$36,1))) -> 0 | E37: =IF(COUNTIFS(Register!$R$10:$R$1048576,">="&E$36,Register!$R$10:$R$1048576,"<"&EDATE(E$36,1))=0,0,COUNTIFS(Register!$R$10:$R$1048576,">="&E$36,Register!$R$10:$R$1048576,"<"&EDATE(E$36,1))) -> 0 | F37: =IF(COUNTIFS(Register!$R$10:$R$1048576,">="&F$36,Register!$R$10:$R$1048576,"<"&EDATE(F$36,1))=0,0,COUNTIFS(Register!$R$10:$R$1048576,">="&F$36,Register!$R$10:$R$1048576,"<"&EDATE(F$36,1))) -> 1 | G37: =IF(COUNTIFS(Register!$R$10:$R$1048576,">="&G$36,Register!$R$10:$R$1048576,"<"&EDATE(G$36,1))=0,0,COUNTIFS(Register!$R$10:$R$1048576,">="&G$36,Register!$R$10:$R$1048576,"<"&EDATE(G$36,1))) -> 2 | H37: =IF(COUNTIFS(Register!$R$10:$R$1048576,">="&H$36,Register!$R$10:$R$1048576,"<"&EDATE(H$36,1))=0,0,COUNTIFS(Register!$R$10:$R$1048576,">="&H$36,Register!$R$10:$R$1048576,"<"&EDATE(H$36,1))) -> 3 | I37: =IF(COUNTIFS(Register!$R$10:$R$1048576,">="&I$36,Register!$R$10:$R$1048576,"<"&EDATE(I$36,1))=0,0,COUNTIFS(Register!$R$10:$R$1048576,">="&I$36,Register!$R$10:$R$1048576,"<"&EDATE(I$36,1))) -> 2 | J37: =IF(COUNTIFS(Register!$R$10:$R$1048576,">="&J$36,Register!$R$10:$R$1048576,"<"&EDATE(J$36,1))=0,0,COUNTIFS(Register!$R$10:$R$1048576,">="&J$36,Register!$R$10:$R$1048576,"<"&EDATE(J$36,1))) -> 0 | K37: =IF(COUNTIFS(Register!$R$10:$R$1048576,">="&K$36,Register!$R$10:$R$1048576,"<"&EDATE(K$36,1))=0,0,COUNTIFS(Register!$R$10:$R$1048576,">="&K$36,Register!$R$10:$R$1048576,"<"&EDATE(K$36,1))) -> 0 | L37: =IF(COUNTIFS(Register!$R$10:$R$1048576,">="&L$36,Register!$R$10:$R$1048576,"<"&EDATE(L$36,1))=0,0,COUNTIFS(Register!$R$10:$R$1048576,">="&L$36,Register!$R$10:$R$1048576,"<"&EDATE(L$36,1))) -> 0 | M37: =IF(COUNTIFS(Register!$R$10:$R$1048576,">="&M$36,Register!$R$10:$R$1048576,"<"&EDATE(M$36,1))=0,0,COUNTIFS(Register!$R$10:$R$1048576,">="&M$36,Register!$R$10:$R$1048576,"<"&EDATE(M$36,1))) -> 0 | N37: =IF(COUNTIFS(Register!$R$10:$R$1048576,">="&N$36,Register!$R$10:$R$1048576,"<"&EDATE(N$36,1))=0,0,COUNTIFS(Register!$R$10:$R$1048576,">="&N$36,Register!$R$10:$R$1048576,"<"&EDATE(N$36,1))) -> 0 | O37: =IF(COUNTIFS(Register!$R$10:$R$1048576,">="&O$36,Register!$R$10:$R$1048576,"<"&EDATE(O$36,1))=0,0,COUNTIFS(Register!$R$10:$R$1048576,">="&O$36,Register!$R$10:$R$1048576,"<"&EDATE(O$36,1))) -> 0 | P37: =IF(COUNTIFS(Register!$R$10:$R$1048576,">="&P$36,Register!$R$10:$R$1048576,"<"&EDATE(P$36,1))=0,0,COUNTIFS(Register!$R$10:$R$1048576,">="&P$36,Register!$R$10:$R$1048576,"<"&EDATE(P$36,1))) -> 0 | Q37: =IF(COUNTIFS(Register!$R$10:$R$1048576,">="&Q$36,Register!$R$10:$R$1048576,"<"&EDATE(Q$36,1))=0,0,COUNTIFS(Register!$R$10:$R$1048576,">="&Q$36,Register!$R$10:$R$1048576,"<"&EDATE(Q$36,1))) -> 0 | R37: =IF(COUNTIFS(Register!$R$10:$R$1048576,">="&R$36,Register!$R$10:$R$1048576,"<"&EDATE(R$36,1))=0,0,COUNTIFS(Register!$R$10:$R$1048576,">="&R$36,Register!$R$10:$R$1048576,"<"&EDATE(R$36,1))) -> 0 | S37: =IF(COUNTIFS(Register!$R$10:$R$1048576,">="&S$36,Register!$R$10:$R$1048576,"<"&EDATE(S$36,1))=0,0,COUNTIFS(Register!$R$10:$R$1048576,">="&S$36,Register!$R$10:$R$1048576,"<"&EDATE(S$36,1))) -> 0 | T37: =IF(COUNTIFS(Register!$R$10:$R$1048576,">="&T$36,Register!$R$10:$R$1048576,"<"&EDATE(T$36,1))=0,0,COUNTIFS(Register!$R$10:$R$1048576,">="&T$36,Register!$R$10:$R$1048576,"<"&EDATE(T$36,1))) -> 0 | U37: =IF(COUNTIFS(Register!$R$10:$R$1048576,">="&U$36,Register!$R$10:$R$1048576,"<"&EDATE(U$36,1))=0,0,COUNTIFS(Register!$R$10:$R$1048576,">="&U$36,Register!$R$10:$R$1048576,"<"&EDATE(U$36,1))) -> 0 | V37: =IF(COUNTIFS(Register!$R$10:$R$1048576,">="&V$36,Register!$R$10:$R$1048576,"<"&EDATE(V$36,1))=0,0,COUNTIFS(Register!$R$10:$R$1048576,">="&V$36,Register!$R$10:$R$1048576,"<"&EDATE(V$36,1))) -> 0 | W37: =IF(COUNTIFS(Register!$R$10:$R$1048576,">="&W$36,Register!$R$10:$R$1048576,"<"&EDATE(W$36,1))=0,0,COUNTIFS(Register!$R$10:$R$1048576,">="&W$36,Register!$R$10:$R$1048576,"<"&EDATE(W$36,1))) -> 0 | X37: =IF(COUNTIFS(Register!$R$10:$R$1048576,">="&X$36,Register!$R$10:$R$1048576,"<"&EDATE(X$36,1))=0,0,COUNTIFS(Register!$R$10:$R$1048576,">="&X$36,Register!$R$10:$R$1048576,"<"&EDATE(X$36,1))) -> 0 | Y37: =IF(COUNTIFS(Register!$R$10:$R$1048576,">="&Y$36,Register!$R$10:$R$1048576,"<"&EDATE(Y$36,1))=0,0,COUNTIFS(Register!$R$10:$R$1048576,">="&Y$36,Register!$R$10:$R$1048576,"<"&EDATE(Y$36,1))) -> 0 | Z37: =IF(COUNTIFS(Register!$R$10:$R$1048576,">="&Z$36,Register!$R$10:$R$1048576,"<"&EDATE(Z$36,1))=0,0,COUNTIFS(Register!$R$10:$R$1048576,">="&Z$36,Register!$R$10:$R$1048576,"<"&EDATE(Z$36,1))) -> 0 | AA37: =IF(COUNTIFS(Register!$R$10:$R$1048576,">="&AA$36,Register!$R$10:$R$1048576,"<"&EDATE(AA$36,1))=0,0,COUNTIFS(Register!$R$10:$R$1048576,">="&AA$36,Register!$R$10:$R$1048576,"<"&EDATE(AA$36,1))) -> 0 | AB37: =IF(COUNTIFS(Register!$R$10:$R$1048576,">="&AB$36,Register!$R$10:$R$1048576,"<"&EDATE(AB$36,1))=0,0,COUNTIFS(Register!$R$10:$R$1048576,">="&AB$36,Register!$R$10:$R$1048576,"<"&EDATE(AB$36,1))) -> 0 | AC37: =IF(COUNTIFS(Register!$R$10:$R$1048576,">="&AC$36,Register!$R$10:$R$1048576,"<"&EDATE(AC$36,1))=0,0,COUNTIFS(Register!$R$10:$R$1048576,">="&AC$36,Register!$R$10:$R$1048576,"<"&EDATE(AC$36,1))) -> 0 | AD37: =IF(COUNTIFS(Register!$R$10:$R$1048576,">="&AD$36,Register!$R$10:$R$1048576,"<"&EDATE(AD$36,1))=0,0,COUNTIFS(Register!$R$10:$R$1048576,">="&AD$36,Register!$R$10:$R$1048576,"<"&EDATE(AD$36,1))) -> 0 | AE37: =IF(COUNTIFS(Register!$R$10:$R$1048576,">="&AE$36,Register!$R$10:$R$1048576,"<"&EDATE(AE$36,1))=0,0,COUNTIFS(Register!$R$10:$R$1048576,">="&AE$36,Register!$R$10:$R$1048576,"<"&EDATE(AE$36,1))) -> 0 | AF37: =IF(COUNTIFS(Register!$R$10:$R$1048576,">="&AF$36,Register!$R$10:$R$1048576,"<"&EDATE(AF$36,1))=0,0,COUNTIFS(Register!$R$10:$R$1048576,">="&AF$36,Register!$R$10:$R$1048576,"<"&EDATE(AF$36,1))) -> 0 | AG37: =IF(COUNTIFS(Register!$R$10:$R$1048576,">="&AG$36,Register!$R$10:$R$1048576,"<"&EDATE(AG$36,1))=0,0,COUNTIFS(Register!$R$10:$R$1048576,">="&AG$36,Register!$R$10:$R$1048576,"<"&EDATE(AG$36,1))) -> 0 | AH37: =IF(COUNTIFS(Register!$R$10:$R$1048576,">="&AH$36,Register!$R$10:$R$1048576,"<"&EDATE(AH$36,1))=0,0,COUNTIFS(Register!$R$10:$R$1048576,">="&AH$36,Register!$R$10:$R$1048576,"<"&EDATE(AH$36,1))) -> 0 | AI37: =IF(COUNTIFS(Register!$R$10:$R$1048576,">="&AI$36,Register!$R$10:$R$1048576,"<"&EDATE(AI$36,1))=0,0,COUNTIFS(Register!$R$10:$R$1048576,">="&AI$36,Register!$R$10:$R$1048576,"<"&EDATE(AI$36,1))) -> 0 | AJ37: =IF(COUNTIFS(Register!$R$10:$R$1048576,">="&AJ$36,Register!$R$10:$R$1048576,"<"&EDATE(AJ$36,1))=0,0,COUNTIFS(Register!$R$10:$R$1048576,">="&AJ$36,Register!$R$10:$R$1048576,"<"&EDATE(AJ$36,1))) -> 0 | AK37: =IF(COUNTIFS(Register!$R$10:$R$1048576,">="&AK$36,Register!$R$10:$R$1048576,"<"&EDATE(AK$36,1))=0,0,COUNTIFS(Register!$R$10:$R$1048576,">="&AK$36,Register!$R$10:$R$1048576,"<"&EDATE(AK$36,1))) -> 0 | AL37: =IF(COUNTIFS(Register!$R$10:$R$1048576,">="&AL$36,Register!$R$10:$R$1048576,"<"&EDATE(AL$36,1))=0,0,COUNTIFS(Register!$R$10:$R$1048576,">="&AL$36,Register!$R$10:$R$1048576,"<"&EDATE(AL$36,1))) -> 0 | AM37: =IF(COUNTIFS(Register!$R$10:$R$1048576,">="&AM$36,Register!$R$10:$R$1048576,"<"&EDATE(AM$36,1))=0,0,COUNTIFS(Register!$R$10:$R$1048576,">="&AM$36,Register!$R$10:$R$1048576,"<"&EDATE(AM$36,1))) -> 0 | AN37: =IF(COUNTIFS(Register!$R$10:$R$1048576,">="&AN$36,Register!$R$10:$R$1048576,"<"&EDATE(AN$36,1))=0,0,COUNTIFS(Register!$R$10:$R$1048576,">="&AN$36,Register!$R$10:$R$1048576,"<"&EDATE(AN$36,1))) -> 0 | AO37: =IF(COUNTIFS(Register!$R$10:$R$1048576,">="&AO$36,Register!$R$10:$R$1048576,"<"&EDATE(AO$36,1))=0,0,COUNTIFS(Register!$R$10:$R$1048576,">="&AO$36,Register!$R$10:$R$1048576,"<"&EDATE(AO$36,1))) -> 0 | AP37: =IF(COUNTIFS(Register!$R$10:$R$1048576,">="&AP$36,Register!$R$10:$R$1048576,"<"&EDATE(AP$36,1))=0,0,COUNTIFS(Register!$R$10:$R$1048576,">="&AP$36,Register!$R$10:$R$1048576,"<"&EDATE(AP$36,1))) -> 0 | AQ37: =IF(COUNTIFS(Register!$R$10:$R$1048576,">="&AQ$36,Register!$R$10:$R$1048576,"<"&EDATE(AQ$36,1))=0,0,COUNTIFS(Register!$R$10:$R$1048576,">="&AQ$36,Register!$R$10:$R$1048576,"<"&EDATE(AQ$36,1))) -> 0 | AR37: =IF(COUNTIFS(Register!$R$10:$R$1048576,">="&AR$36,Register!$R$10:$R$1048576,"<"&EDATE(AR$36,1))=0,0,COUNTIFS(Register!$R$10:$R$1048576,">="&AR$36,Register!$R$10:$R$1048576,"<"&EDATE(AR$36,1))) -> 0 | AS37: =IF(COUNTIFS(Register!$R$10:$R$1048576,">="&AS$36,Register!$R$10:$R$1048576,"<"&EDATE(AS$36,1))=0,0,COUNTIFS(Register!$R$10:$R$1048576,">="&AS$36,Register!$R$10:$R$1048576,"<"&EDATE(AS$36,1))) -> 0 | AT37: =IF(COUNTIFS(Register!$R$10:$R$1048576,">="&AT$36,Register!$R$10:$R$1048576,"<"&EDATE(AT$36,1))=0,0,COUNTIFS(Register!$R$10:$R$1048576,">="&AT$36,Register!$R$10:$R$1048576,"<"&EDATE(AT$36,1))) -> 0 | AU37: =IF(COUNTIFS(Register!$R$10:$R$1048576,">="&AU$36,Register!$R$10:$R$1048576,"<"&EDATE(AU$36,1))=0,0,COUNTIFS(Register!$R$10:$R$1048576,">="&AU$36,Register!$R$10:$R$1048576,"<"&EDATE(AU$36,1))) -> 0 | AV37: =IF(COUNTIFS(Register!$R$10:$R$1048576,">="&AV$36,Register!$R$10:$R$1048576,"<"&EDATE(AV$36,1))=0,0,COUNTIFS(Register!$R$10:$R$1048576,">="&AV$36,Register!$R$10:$R$1048576,"<"&EDATE(AV$36,1))) -> 0
A38: =AVERAGE($A$37:A$37) -> 2 | B38: =AVERAGE($A$37:B$37) -> 1 | C38: =AVERAGE($A$37:C$37) -> 1 | D38: =AVERAGE($A$37:D$37) -> 1 | E38: =AVERAGE($A$37:E$37) -> 1 | F38: =AVERAGE($A$37:F$37) -> 1 | G38: =AVERAGE($A$37:G$37) -> 1 | H38: =AVERAGE($A$37:H$37) -> 1 | I38: =AVERAGE($A$37:I$37) -> 1 | J38: =AVERAGE($A$37:J$37) -> 1 | K38: =AVERAGE($A$37:K$37) -> 1 | L38: =AVERAGE($A$37:L$37) -> 1 | M38: =AVERAGE($A$37:M$37) -> 1 | N38: =AVERAGE($A$37:N$37) -> 1 | O38: =AVERAGE($A$37:O$37) -> 1 | P38: =AVERAGE($A$37:P$37) -> 1 | Q38: =AVERAGE($A$37:Q$37) -> 1 | R38: =AVERAGE($A$37:R$37) -> 1 | S38: =AVERAGE($A$37:S$37) -> 1 | T38: =AVERAGE($A$37:T$37) -> 1 | U38: =AVERAGE($A$37:U$37) -> 1 | V38: =AVERAGE($A$37:V$37) -> 1 | W38: =AVERAGE($A$37:W$37) -> 1 | X38: =AVERAGE($A$37:X$37) -> 1 | Y38: =AVERAGE($A$37:Y$37) -> 0 | Z38: =AVERAGE($A$37:Z$37) -> 0 | AA38: =AVERAGE($A$37:AA$37) -> 0 | AB38: =AVERAGE($A$37:AB$37) -> 0 | AC38: =AVERAGE($A$37:AC$37) -> 0 | AD38: =AVERAGE($A$37:AD$37) -> 0 | AE38: =AVERAGE($A$37:AE$37) -> 0 | AF38: =AVERAGE($A$37:AF$37) -> 0 | AG38: =AVERAGE($A$37:AG$37) -> 0 | AH38: =AVERAGE($A$37:AH$37) -> 0 | AI38: =AVERAGE($A$37:AI$37) -> 0 | AJ38: =AVERAGE($A$37:AJ$37) -> 0 | AK38: =AVERAGE($A$37:AK$37) -> 0 | AL38: =AVERAGE($A$37:AL$37) -> 0 | AM38: =AVERAGE($A$37:AM$37) -> 0 | AN38: =AVERAGE($A$37:AN$37) -> 0 | AO38: =AVERAGE($A$37:AO$37) -> 0 | AP38: =AVERAGE($A$37:AP$37) -> 0 | AQ38: =AVERAGE($A$37:AQ$37) -> 0 | AR38: =AVERAGE($A$37:AR$37) -> 0 | AS38: =AVERAGE($A$37:AS$37) -> 0 | AT38: =AVERAGE($A$37:AT$37) -> 0 | AU38: =AVERAGE($A$37:AU$37) -> 0 | AV38: =AVERAGE($A$37:AV$37) -> 0
A53: =A36 -> 2014-08-01 | B53: =EDATE(A53,1) -> 2014-09-01 | C53: =EDATE(B53,1) -> 2014-10-01 | D53: 2014-11-01 | E53: 2014-12-01 | F53: 2015-01-01 | G53: 2015-02-01 | H53: 2015-03-01 | I53: 2015-04-01 | J53: 2015-05-01 | K53: 2015-06-01 | L53: 2015-07-01 | M53: 2015-08-01 | N53: 2015-09-01 | O53: 2015-10-01 | P53: 2015-11-01 | Q53: 2015-12-01 | R53: 2016-01-01 | S53: 2016-02-01 | T53: 2016-03-01 | U53: 2016-04-01 | V53: 2016-05-01 | W53: 2016-06-01 | X53: 2016-07-01 | Y53: 2016-08-01 | Z53: 2016-09-01 | AA53: 2016-10-01 | AB53: 2016-11-01 | AC53: 2016-12-01 | AD53: 2017-01-01 | AE53: 2017-02-01 | AF53: 2017-03-01 | AG53: 2017-04-01 | AH53: 2017-05-01 | AI53: 2017-06-01 | AJ53: 2017-07-01 | AK53: 2017-08-01 | AL53: 2017-09-01 | AM53: 2017-10-01 | AN53: 2017-11-01 | AO53: 2017-12-01 | AP53: 2018-01-01 | AQ53: 2018-02-01 | AR53: 2018-03-01 | AS53: 2018-04-01 | AT53: 2018-05-01 | AU53: 2018-06-01 | AV53: 2018-07-01
A54: =SUMIFS(Register!$BX$10:$BX$1048576,Register!$R$10:$R$1048576,">="&A$53,Register!$R$10:$R$1048576,"<"&EDATE(A$53,1)) -> 11000 | B54: =SUMIFS(Register!$BX$10:$BX$1048576,Register!$R$10:$R$1048576,">="&B$53,Register!$R$10:$R$1048576,"<"&EDATE(B$53,1)) -> 0 | C54: =SUMIFS(Register!$BX$10:$BX$1048576,Register!$R$10:$R$1048576,">="&C$53,Register!$R$10:$R$1048576,"<"&EDATE(C$53,1)) -> 500 | D54: =SUMIFS(Register!$BX$10:$BX$1048576,Register!$R$10:$R$1048576,">="&D$53,Register!$R$10:$R$1048576,"<"&EDATE(D$53,1)) -> 0 | E54: =SUMIFS(Register!$BX$10:$BX$1048576,Register!$R$10:$R$1048576,">="&E$53,Register!$R$10:$R$1048576,"<"&EDATE(E$53,1)) -> 0 | F54: =SUMIFS(Register!$BX$10:$BX$1048576,Register!$R$10:$R$1048576,">="&F$53,Register!$R$10:$R$1048576,"<"&EDATE(F$53,1)) -> 1100 | G54: =SUMIFS(Register!$BX$10:$BX$1048576,Register!$R$10:$R$1048576,">="&G$53,Register!$R$10:$R$1048576,"<"&EDATE(G$53,1)) -> 2500 | H54: =SUMIFS(Register!$BX$10:$BX$1048576,Register!$R$10:$R$1048576,">="&H$53,Register!$R$10:$R$1048576,"<"&EDATE(H$53,1)) -> 4500 | I54: =SUMIFS(Register!$BX$10:$BX$1048576,Register!$R$10:$R$1048576,">="&I$53,Register!$R$10:$R$1048576,"<"&EDATE(I$53,1)) -> 1700 | J54: =SUMIFS(Register!$BX$10:$BX$1048576,Register!$R$10:$R$1048576,">="&J$53,Register!$R$10:$R$1048576,"<"&EDATE(J$53,1)) -> 0 | K54: =SUMIFS(Register!$BX$10:$BX$1048576,Register!$R$10:$R$1048576,">="&K$53,Register!$R$10:$R$1048576,"<"&EDATE(K$53,1)) -> 0 | L54: =SUMIFS(Register!$BX$10:$BX$1048576,Register!$R$10:$R$1048576,">="&L$53,Register!$R$10:$R$1048576,"<"&EDATE(L$53,1)) -> 0 | M54: =SUMIFS(Register!$BX$10:$BX$1048576,Register!$R$10:$R$1048576,">="&M$53,Register!$R$10:$R$1048576,"<"&EDATE(M$53,1)) -> 0 | N54: =SUMIFS(Register!$BX$10:$BX$1048576,Register!$R$10:$R$1048576,">="&N$53,Register!$R$10:$R$1048576,"<"&EDATE(N$53,1)) -> 0 | O54: =SUMIFS(Register!$BX$10:$BX$1048576,Register!$R$10:$R$1048576,">="&O$53,Register!$R$10:$R$1048576,"<"&EDATE(O$53,1)) -> 0 | P54: =SUMIFS(Register!$BX$10:$BX$1048576,Register!$R$10:$R$1048576,">="&P$53,Register!$R$10:$R$1048576,"<"&EDATE(P$53,1)) -> 0 | Q54: =SUMIFS(Register!$BX$10:$BX$1048576,Register!$R$10:$R$1048576,">="&Q$53,Register!$R$10:$R$1048576,"<"&EDATE(Q$53,1)) -> 0 | R54: =SUMIFS(Register!$BX$10:$BX$1048576,Register!$R$10:$R$1048576,">="&R$53,Register!$R$10:$R$1048576,"<"&EDATE(R$53,1)) -> 0 | S54: =SUMIFS(Register!$BX$10:$BX$1048576,Register!$R$10:$R$1048576,">="&S$53,Register!$R$10:$R$1048576,"<"&EDATE(S$53,1)) -> 0 | T54: =SUMIFS(Register!$BX$10:$BX$1048576,Register!$R$10:$R$1048576,">="&T$53,Register!$R$10:$R$1048576,"<"&EDATE(T$53,1)) -> 0 | U54: =SUMIFS(Register!$BX$10:$BX$1048576,Register!$R$10:$R$1048576,">="&U$53,Register!$R$10:$R$1048576,"<"&EDATE(U$53,1)) -> 0 | V54: =SUMIFS(Register!$BX$10:$BX$1048576,Register!$R$10:$R$1048576,">="&V$53,Register!$R$10:$R$1048576,"<"&EDATE(V$53,1)) -> 0 | W54: =SUMIFS(Register!$BX$10:$BX$1048576,Register!$R$10:$R$1048576,">="&W$53,Register!$R$10:$R$1048576,"<"&EDATE(W$53,1)) -> 0 | X54: =SUMIFS(Register!$BX$10:$BX$1048576,Register!$R$10:$R$1048576,">="&X$53,Register!$R$10:$R$1048576,"<"&EDATE(X$53,1)) -> 0 | Y54: =SUMIFS(Register!$BX$10:$BX$1048576,Register!$R$10:$R$1048576,">="&Y$53,Register!$R$10:$R$1048576,"<"&EDATE(Y$53,1)) -> 0 | Z54: =SUMIFS(Register!$BX$10:$BX$1048576,Register!$R$10:$R$1048576,">="&Z$53,Register!$R$10:$R$1048576,"<"&EDATE(Z$53,1)) -> 0 | AA54: =SUMIFS(Register!$BX$10:$BX$1048576,Register!$R$10:$R$1048576,">="&AA$53,Register!$R$10:$R$1048576,"<"&EDATE(AA$53,1)) -> 0 | AB54: =SUMIFS(Register!$BX$10:$BX$1048576,Register!$R$10:$R$1048576,">="&AB$53,Register!$R$10:$R$1048576,"<"&EDATE(AB$53,1)) -> 0 | AC54: =SUMIFS(Register!$BX$10:$BX$1048576,Register!$R$10:$R$1048576,">="&AC$53,Register!$R$10:$R$1048576,"<"&EDATE(AC$53,1)) -> 0 | AD54: =SUMIFS(Register!$BX$10:$BX$1048576,Register!$R$10:$R$1048576,">="&AD$53,Register!$R$10:$R$1048576,"<"&EDATE(AD$53,1)) -> 0 | AE54: =SUMIFS(Register!$BX$10:$BX$1048576,Register!$R$10:$R$1048576,">="&AE$53,Register!$R$10:$R$1048576,"<"&EDATE(AE$53,1)) -> 0 | AF54: =SUMIFS(Register!$BX$10:$BX$1048576,Register!$R$10:$R$1048576,">="&AF$53,Register!$R$10:$R$1048576,"<"&EDATE(AF$53,1)) -> 0 | AG54: =SUMIFS(Register!$BX$10:$BX$1048576,Register!$R$10:$R$1048576,">="&AG$53,Register!$R$10:$R$1048576,"<"&EDATE(AG$53,1)) -> 0 | AH54: =SUMIFS(Register!$BX$10:$BX$1048576,Register!$R$10:$R$1048576,">="&AH$53,Register!$R$10:$R$1048576,"<"&EDATE(AH$53,1)) -> 0 | AI54: =SUMIFS(Register!$BX$10:$BX$1048576,Register!$R$10:$R$1048576,">="&AI$53,Register!$R$10:$R$1048576,"<"&EDATE(AI$53,1)) -> 0 | AJ54: =SUMIFS(Register!$BX$10:$BX$1048576,Register!$R$10:$R$1048576,">="&AJ$53,Register!$R$10:$R$1048576,"<"&EDATE(AJ$53,1)) -> 0 | AK54: =SUMIFS(Register!$BX$10:$BX$1048576,Register!$R$10:$R$1048576,">="&AK$53,Register!$R$10:$R$1048576,"<"&EDATE(AK$53,1)) -> 0 | AL54: =SUMIFS(Register!$BX$10:$BX$1048576,Register!$R$10:$R$1048576,">="&AL$53,Register!$R$10:$R$1048576,"<"&EDATE(AL$53,1)) -> 0 | AM54: =SUMIFS(Register!$BX$10:$BX$1048576,Register!$R$10:$R$1048576,">="&AM$53,Register!$R$10:$R$1048576,"<"&EDATE(AM$53,1)) -> 0 | AN54: =SUMIFS(Register!$BX$10:$BX$1048576,Register!$R$10:$R$1048576,">="&AN$53,Register!$R$10:$R$1048576,"<"&EDATE(AN$53,1)) -> 0 | AO54: =SUMIFS(Register!$BX$10:$BX$1048576,Register!$R$10:$R$1048576,">="&AO$53,Register!$R$10:$R$1048576,"<"&EDATE(AO$53,1)) -> 0 | AP54: =SUMIFS(Register!$BX$10:$BX$1048576,Register!$R$10:$R$1048576,">="&AP$53,Register!$R$10:$R$1048576,"<"&EDATE(AP$53,1)) -> 0 | AQ54: =SUMIFS(Register!$BX$10:$BX$1048576,Register!$R$10:$R$1048576,">="&AQ$53,Register!$R$10:$R$1048576,"<"&EDATE(AQ$53,1)) -> 0 | AR54: =SUMIFS(Register!$BX$10:$BX$1048576,Register!$R$10:$R$1048576,">="&AR$53,Register!$R$10:$R$1048576,"<"&EDATE(AR$53,1)) -> 0 | AS54: =SUMIFS(Register!$BX$10:$BX$1048576,Register!$R$10:$R$1048576,">="&AS$53,Register!$R$10:$R$1048576,"<"&EDATE(AS$53,1)) -> 0 | AT54: =SUMIFS(Register!$BX$10:$BX$1048576,Register!$R$10:$R$1048576,">="&AT$53,Register!$R$10:$R$1048576,"<"&EDATE(AT$53,1)) -> 0 | AU54: =SUMIFS(Register!$BX$10:$BX$1048576,Register!$R$10:$R$1048576,">="&AU$53,Register!$R$10:$R$1048576,"<"&EDATE(AU$53,1)) -> 0 | AV54: =SUMIFS(Register!$BX$10:$BX$1048576,Register!$R$10:$R$1048576,">="&AV$53,Register!$R$10:$R$1048576,"<"&EDATE(AV$53,1)) -> 0
A55: =AVERAGE($A$54:A$54) -> 11000 | B55: =AVERAGE($A$54:B$54) -> 5500 | C55: =AVERAGE($A$54:C$54) -> 3833 | D55: =AVERAGE($A$54:D$54) -> 2875 | E55: =AVERAGE($A$54:E$54) -> 2300 | F55: =AVERAGE($A$54:F$54) -> 2100 | G55: =AVERAGE($A$54:G$54) -> 2157 | H55: =AVERAGE($A$54:H$54) -> 2450 | I55: =AVERAGE($A$54:I$54) -> 2367 | J55: =AVERAGE($A$54:J$54) -> 2130 | K55: =AVERAGE($A$54:K$54) -> 1936 | L55: =AVERAGE($A$54:L$54) -> 1775 | M55: =AVERAGE($A$54:M$54) -> 1638 | N55: =AVERAGE($A$54:N$54) -> 1521 | O55: =AVERAGE($A$54:O$54) -> 1420 | P55: =AVERAGE($A$54:P$54) -> 1331 | Q55: =AVERAGE($A$54:Q$54) -> 1253 | R55: =AVERAGE($A$54:R$54) -> 1183 | S55: =AVERAGE($A$54:S$54) -> 1121 | T55: =AVERAGE($A$54:T$54) -> 1065 | U55: =AVERAGE($A$54:U$54) -> 1014 | V55: =AVERAGE($A$54:V$54) -> 968 | W55: =AVERAGE($A$54:W$54) -> 926 | X55: =AVERAGE($A$54:X$54) -> 888 | Y55: =AVERAGE($A$54:Y$54) -> 852 | Z55: =AVERAGE($A$54:Z$54) -> 819 | AA55: =AVERAGE($A$54:AA$54) -> 789 | AB55: =AVERAGE($A$54:AB$54) -> 761 | AC55: =AVERAGE($A$54:AC$54) -> 734 | AD55: =AVERAGE($A$54:AD$54) -> 710 | AE55: =AVERAGE($A$54:AE$54) -> 687 | AF55: =AVERAGE($A$54:AF$54) -> 666 | AG55: =AVERAGE($A$54:AG$54) -> 645 | AH55: =AVERAGE($A$54:AH$54) -> 626 | AI55: =AVERAGE($A$54:AI$54) -> 609 | AJ55: =AVERAGE($A$54:AJ$54) -> 592 | AK55: =AVERAGE($A$54:AK$54) -> 576 | AL55: =AVERAGE($A$54:AL$54) -> 561 | AM55: =AVERAGE($A$54:AM$54) -> 546 | AN55: =AVERAGE($A$54:AN$54) -> 533 | AO55: =AVERAGE($A$54:AO$54) -> 520 | AP55: =AVERAGE($A$54:AP$54) -> 507 | AQ55: =AVERAGE($A$54:AQ$54) -> 495 | AR55: =AVERAGE($A$54:AR$54) -> 484 | AS55: =AVERAGE($A$54:AS$54) -> 473 | AT55: =AVERAGE($A$54:AT$54) -> 463 | AU55: =AVERAGE($A$54:AU$54) -> 453 | AV55: =AVERAGE($A$54:AV$54) -> 444
A56: =A54 -> 11000 | B56: =A56+B54 -> 11000 | C56: =B56+C54 -> 11500 | D56: 11500 | E56: 11500 | F56: 12600 | G56: 15100 | H56: 19600 | I56: 21300 | J56: 21300 | K56: 21300 | L56: 21300 | M56: 21300 | N56: 21300 | O56: 21300 | P56: 21300 | Q56: 21300 | R56: 21300 | S56: 21300 | T56: 21300 | U56: 21300 | V56: 21300 | W56: 21300 | X56: 21300 | Y56: 21300 | Z56: 21300 | AA56: 21300 | AB56: 21300 | AC56: 21300 | AD56: 21300 | AE56: 21300 | AF56: 21300 | AG56: 21300 | AH56: 21300 | AI56: 21300 | AJ56: 21300 | AK56: 21300 | AL56: 21300 | AM56: 21300 | AN56: 21300 | AO56: 21300 | AP56: 21300 | AQ56: 21300 | AR56: 21300 | AS56: 21300 | AT56: 21300 | AU56: 21300 | AV56: 21300

Sheet Validation
A1: Issued by… | C1: Received by… | E1: Trade | G1: Loccation | I1: Item | K1: Root Cause
A2: Client | C2: Party 1 | E2: Architectural | G2: Location 1 | I2: Item 1 | K2: Man
A3: Consultant | C3: Party 2 | E3: Electrical | G3: Location 2 | I3: Item 2 | K3: Method
A4: Main Contr. | C4: Party 3 | E4: Fire Systems | G4: Location 3 | I4: Item 3 | K4: Material
C5: Party 4 | E5: HVAC | G5: Location 4 | I5: Item 4 | K5: Machine
C6: Party 5 | E6: Landscaping | G6: Location 5 | I6: Item 5
C7: Party 6 | E7: Mechanical | G7: Location 6 | I7: Item 6
C8: Party 7 | E8: Plumbing | G8: Location 7 | I8: Item 7
C9: Party 8 | E9: Safety | G9: Location 8 | I9: Item 8
C10: Party 9 | E10: Structural | G10: Location 9 | I10: Item 9
C11: Party 10 | E11: Others | G11: Location 10 | I11: Item 10
G12: Location 11 | I12: Item 11
G13: Location 12 | I13: Item 12
G14: Location 13 | I14: Item 13
G15: Location 14 | I15: Item 14
G16: Location 15 | I16: Item 15
G17: Location 16 | I17: Item 16
G18: Location 17 | I18: Item 17
G19: Location 18 | I19: Item 18
G20: Location 19 | I20: Item 19
G21: Location 20 | I21: Item 20
G22: Location 21 | I22: Item 21
G23: Location 22 | I23: Item 22
G24: Location 23 | I24: Item 23
G25: Location 24 | I25: Item 24
G26: Location 25 | I26: Item 25
G27: Location 26 | I27: Item 26
G28: Location 27 | I28: Item 27
G29: Location 28 | I29: Item 28
G30: Location 29 | I30: Item 29
G31: Location 30 | I31: Item 30
